[Event "20th Heraklion IT Open 2017"]
[Site "Heraklion"]
[Date "2017.04.21"]
[Round "6"]
[White "Mamoulakis, Eleftherios"]
[Black "Galanakis, Nikos"]
[Result "1-0"]
[ECO "A04"]
[WhiteElo "2117"]
[BlackElo "1588"]
[Annotator "NA"]
[PlyCount "81"]
[EventDate "2017.??.??"]
[EventType "swiss"]
[EventCountry "GRE"]
[SourceTitle "playchess.com"]
[Source "ChessBase"]
[SourceQuality "1"]
[TimeControl "40/5400+30:1800+30"]

1. Nf3 {[%emt 0:00:00]} b5 {[%emt 0:08:52]} 2. d4 {[%emt 0:00:06]} Bb7 {[%emt 0:00:10]} 3. e3 {[%emt 0:00:32]} a6 {[%emt 0:00:09]} 4. c4 {[%emt 0:00:20]} bxc4 {[%emt 0:00:08]} 5. Bxc4 {[%emt 0:00:12]} e6 {[%emt 0:00:20]} 6. Nc3 {[%emt 0:00:30]} Nf6 {[%emt 0:00:08]} 7. O-O {[%emt 0:00:18] A46: 1 d4 Nf6 2 Nf3 e6: Torre, London and Colle Systems} d6 {[%emt 0:03:51]} (7... d5 8. Bd3 Nbd7 9. b3 Bb4 10. Bb2 Qe7 11. Na4 O-O 12. a3 Bd6 13. b4 Bc6 {½-½ (52) Garcia Molina,F (2166)-Ljubojevic,L (2571) Linares 2016}) 8. d5 {[%emt 0:03:40]} e5 {[%emt 0:00:37]} 9. e4 $146 {[%emt 0:00:09]} (9. Qc2 Nbd7 10. a3 Be7 11. Rd1 h6 12. Ba2 O-O 13. b4 {1-0 (35) Verich,O (1082)-Rush,B (988) LSS email 2011}) 9... Nbd7 {[%emt 0:05:57]} 10. Qe2 {[%emt 0:01:04]} Be7 {[%emt 0:06:15]} 11. h3 {[%emt 0:04:06]} Nb6 {[%emt 0:05:09]} 12. Bd3 {[%emt 0:00:51]} Qd7 {[%emt 0:06:20]} 13. Be3 {[%emt 0:01:16]} O-O {[%emt 0:02:01]} 14. Rac1 {[%emt 0:00:28]} Rfb8 {[%emt 0:03:12]} 15. b3 {[%emt 0:05:36]} Bd8 {[%emt 0:07:42]} 16. Nd2 {[%emt 0:11:15]} Qe8 {[%emt 0:07:46]} 17. Nc4 {[%emt 0:11:18]} Nxc4 {[%emt 0:03:46]} 18. Bxc4 {[%emt 0:00:46]} Nd7 {[%emt 0:03:46]} 19. Bd3 {[%emt 0:00:53]} Nb6 {[%emt 0:02:03]} 20. Rc2 {[%emt 0:02:31]} f6 {[%emt 0:09:29]} 21. Rfc1 {[%emt 0:00:36]} Qg6 {[%emt 0:01:11]} 22. Qg4 {[%emt 0:07:11]} Qf7 {[%emt 0:04:16]} 23. f4 {[%emt 0:02:21]} Bc8 {[%emt 0:04:15]} 24. Qg3 {[%emt 0:02:48]} Nd7 {[%emt 0:03:27]} 25. f5 {[%emt 0:01:27]} Nb6 {[%emt 0:01:32]} 26. Qf3 {[%emt 0:00:31]} Bb7 {[%emt 0:00:21]} 27. Qe2 {[%emt 0:03:31]} Kh8 {[%emt 0:01:49]} 28. a4 {[%emt 0:00:55]} Kg8 {[%emt 0:03:21]} 29. a5 {[%emt 0:00:23]} Nc8 {[%emt 0:02:25]} 30. b4 {[%emt 0:00:19]} Ne7 {[%emt 0:01:44]} 31. b5 {[%emt 0:01:39]} axb5 {[%emt 0:01:02]} 32. Nxb5 {[%emt 0:00:09]} Rxa5 {[%emt 0:01:11]} 33. Nxc7 {[%emt 0:00:14]} Bxc7 {[%emt 0:00:48]} 34. Rxc7 {[%emt 0:00:12]} Qe8 {[%emt 0:00:31]} 35. Rb1 {[%emt 0:03:11]} Nxd5 {[%emt 0:01:47]} 36. Rcxb7 {[%emt 0:02:57]} (36. exd5 $142 Qf8 37. Rbxb7 Rxb7 38. Rxb7) 36... Rxb7 {[%emt 0:00:19]} 37. Rxb7 {[%emt 0:00:10]} Nxe3 {[%emt 0:00:40]} 38. Qxe3 {[%emt 0:00:20]} h6 $18 {[%emt 0:00:34]} (38... Qc8 $142) 39. Qb6 {[%emt 0:03:36]} Ra1+ {[%emt 0:00:13]} 40. Kh2 {[%emt 0:00:00]} Rd1 {[%emt 0:00:33]} 41. Rb8 {[%emt 0:00:44]} 1-0

[Event "20th Heraklion IT Open 2017"]
[Site "Heraklion"]
[Date "2017.04.21"]
[Round "6"]
[White "Serpetsidakis, Nikolaos"]
[Black "Hristodoulaki, Antonia"]
[Result "1/2-1/2"]
[ECO "E52"]
[WhiteElo "1994"]
[BlackElo "1994"]
[Annotator "NA RC"]
[PlyCount "106"]
[EventDate "2017.??.??"]
[EventType "swiss"]
[EventCountry "GRE"]
[SourceTitle "playchess.com"]
[Source "ChessBase"]
[SourceQuality "1"]
[TimeControl "40/5400+30:1800+30"]

1. d4 {[%emt 0:00:00]} Nf6 {[%emt 0:05:05]} 2. c4 {[%emt 0:00:00]} e6 {[%emt 0:00:07]} 3. Nc3 {[%emt 0:00:04]} Bb4 {[%emt 0:00:43]} 4. e3 {[%emt 0:00:19]} O-O {[%emt 0:00:15]} 5. Bd3 {[%emt 0:00:06]} d5 {[%emt 0:00:51]} 6. Nf3 {[%emt 0:00:10]} b6 {[%emt 0:01:56]} 7. O-O {[%emt 0:00:14] LiveBook: 565 Games} Ba6 {[%emt 0:01:02]} 8. cxd5 {[%emt 0:02:46]} exd5 {[%emt 0:00:18]} 9. Bxa6 {[%emt 0:02:15]} Nxa6 {[%emt 0:00:03]} 10. Qd3 {[%emt 0:00:52]} Qc8 {[%emt 0:02:32]} 11. a3 {[%emt 0:00:30]} Bxc3 {[%emt 0:20:39]} 12. bxc3 {[%emt 0:00:21]} c5 {[%emt 0:01:24]} 13. Nd2 {[%emt 0:03:22] E53: Nimzo-Indian: Rubinstein: Main Line (4...0-0 5 Nf3 d5 6 Bd3 c5 7 0-0)} Re8 {[%emt 0:16:04]} 14. Bb2 $146 {[%emt 0:02:08]} (14. f3 Qb7 15. Bb2 c4 16. Qe2 Re6 17. Rfe1 Rae8 18. Nf1 Nh5 19. Qd2 f5 20. a4 Qf7 21. g3 Nc7 22. Ba3 h6 23. h3 Nf6 24. g4 Nh7 25. Kg2 fxg4 {½-½ (25) Johannessen,L (2519)-Leko,P (2744) Tromsoe 2013}) 14... c4 {[%emt 0:13:07]} 15. Qc2 {[%emt 0:00:57]} b5 {[%emt 0:00:15]} 16. Rae1 {[%emt 0:01:42]} Nc7 {[%emt 0:03:33]} 17. f3 {[%emt 0:02:39]} Ne6 {[%emt 0:02:38]} 18. g3 {[%emt 0:05:36]} a5 {[%emt 0:10:10]} 19. e4 {[%emt 0:00:59]} g6 {[%emt 0:02:27]} 20. e5 {[%emt 0:08:01]} Nh5 {[%emt 0:02:29]} 21. f4 {[%emt 0:01:24]} Nhg7 {[%emt 0:02:40]} 22. Rf3 {[%emt 0:13:14]} Rf8 {[%emt 0:04:56]} 23. Nf1 {[%emt 0:04:28]} Qd7 {[%emt 0:05:52]} 24. Ne3 {[%emt 0:02:33]} f5 {[%emt 0:01:27]} 25. exf6 {[%emt 0:03:09]} Rxf6 {[%emt 0:00:02]} 26. Ng4 {[%emt 0:06:13]} Rff8 {[%emt 0:00:01]} 27. Rfe3 {[%emt 0:05:35]} Ra6 {[%emt 0:00:44]} 28. Qe2 {[%emt 0:00:22]} h5 {[%emt 0:02:00]} 29. Ne5 $1 {[%emt 0:01:24]} Qe8 {[%emt 0:00:04]} 30. Nf3 {[%emt 0:03:00]} Qd8 {[%emt 0:00:52]} 31. Re5 {[%emt 0:00:57]} Rf5 {[%emt 0:00:40]} 32. Nh4 {[%emt 0:00:33] [#]} Nxf4 $1 {[%emt 0:00:49]} 33. gxf4 {[%emt 0:12:27]} Qxh4 {[%emt 0:00:02]} 34. Bc1 {[%emt 0:00:19]} Qg4+ {[%emt 0:00:41]} 35. Qxg4 {[%emt 0:00:04]} hxg4 {[%emt 0:00:05]} 36. Kg2 {[%emt 0:00:02]} b4 {[%emt 0:01:22]} 37. axb4 {[%emt 0:01:24]} axb4 {[%emt 0:00:01]} 38. cxb4 {[%emt 0:00:01]} Ra4 {[%emt 0:00:11]} 39. Kg3 {[%emt 0:01:47]} Nh5+ {[%emt 0:00:49]} 40. Kxg4 {[%emt 0:00:00]} Nf6+ {[%emt 0:00:12]} 41. Kf3 {[%emt 0:01:21]} Rxb4 {[%emt 0:03:07]} 42. Rxf5 {[%emt 0:14:13]} (42. Be3 $15) 42... gxf5 {[%emt 0:00:02]} (42... Rb3+ $142 43. Re3 Rxe3+ 44. Bxe3 (44. Kxe3 gxf5 45. h3 Kg7 $17) 44... gxf5) 43. Re5 {[%emt 0:00:08]} Rb3+ {[%emt 0:00:38]} 44. Ke2 {[%emt 0:04:55]} Rh3 {[%emt 0:00:54]} 45. Rxf5 {[%emt 0:00:17]} Rxh2+ $17 {[%emt 0:00:03]} 46. Ke3 {[%emt 0:04:08]} Rh3+ {[%emt 0:01:38]} 47. Kd2 {[%emt 0:12:07]} Ne4+ {[%emt 0:10:50]} 48. Kd1 {[%emt 0:00:36]} Rh1+ {[%emt 0:00:22]} 49. Kc2 {[%emt 0:00:10]} Rh2+ {[%emt 0:00:09]} 50. Kd1 {[%emt 0:00:06]} Nf2+ {[%emt 0:11:20]} 51. Kc2 {[%emt 0:00:31]} Ne4+ {[%emt 0:03:25]} 52. Kd1 {[%emt 0:00:50]} Nf2+ {[%emt 0:04:08]} 53. Kc2 {[%emt 0:00:07]} Ne4+ {[%emt 0:00:31]} 1/2-1/2

[Event "20th Heraklion IT Open 2017"]
[Site "Heraklion"]
[Date "2017.04.21"]
[Round "6"]
[White "Maris, Ioannis"]
[Black "Sourgkounis, Angelos"]
[Result "1-0"]
[ECO "B03"]
[WhiteElo "1967"]
[BlackElo "1960"]
[Annotator "NA RC"]
[PlyCount "87"]
[EventDate "2017.??.??"]
[EventType "swiss"]
[EventCountry "GRE"]
[SourceTitle "playchess.com"]
[Source "ChessBase"]
[SourceQuality "1"]
[TimeControl "40/5400+30:1800+30"]

1. e4 {[%emt 0:01:34]} Nf6 {[%emt 0:06:30]} 2. e5 {[%emt 0:02:21]} Nd5 {[%emt 0:00:03]} 3. d4 {[%emt 0:00:14]} d6 {[%emt 0:00:03]} 4. c4 {[%emt 0:00:46]} Nb6 {[%emt 0:00:03]} 5. exd6 {[%emt 0:00:17]} exd6 {[%emt 0:00:03]} 6. Nf3 {[%emt 0:00:31]} Be7 {[%emt 0:00:18] LiveBook: 80 Games} 7. Nc3 {[%emt 0:01:42]} O-O {[%emt 0:01:13]} 8. Be2 {[%emt 0:00:41]} Nc6 {[%emt 0:01:27]} 9. h3 {[%emt 0:15:49]} Bf5 {[%emt 0:03:13]} 10. O-O {[%emt 0:03:47]} Bf6 {[%emt 0:06:29]} 11. Be3 {[%emt 0:07:11] B03: Alekhine's Defence: Four Pawns Attack} Re8 {[%emt 0:03:03]} (11... d5 12. c5 Nc4 13. Bc1 b6 14. b3 N4a5 15. cxb6 axb6 16. Bf4 Nb4 17. Qd2 Re8 18. Rac1 Rc8 {1-0 (40) Rozentalis,E (2588)-Krasenkow,M (2631) Warsaw 2009}) 12. Rc1 {[%emt 0:05:12]} d5 {[%emt 0:06:30]} 13. cxd5 {[%emt 0:00:26]} Nb4 {[%emt 0:00:20]} 14. d6 {[%emt 0:04:44]} cxd6 {[%emt 0:04:56]} 15. Qb3 {[%emt 0:06:04]} a5 {[%emt 0:13:06]} 16. Rfd1 $146 {[%emt 0:12:17]} d5 {[%emt 0:08:27]} 17. Bb5 {[%emt 0:03:49]} Re6 {[%emt 0:06:51]} 18. a3 {[%emt 0:03:01]} Nc6 {[%emt 0:04:22]} 19. Na4 {[%emt 0:00:59]} Nxa4 {[%emt 0:02:23]} 20. Qxa4 {[%emt 0:00:04]} Rc8 {[%emt 0:04:25]} 21. Rc3 {[%emt 0:03:41]} Be7 {[%emt 0:11:07]} 22. Rdc1 {[%emt 0:03:37]} Rg6 {[%emt 0:01:01]} 23. Kf1 {[%emt 0:01:05]} Be4 {[%emt 0:02:22]} 24. Bxc6 {[%emt 0:03:21]} Rgxc6 {[%emt 0:04:18]} 25. Rxc6 {[%emt 0:00:34]} bxc6 {[%emt 0:01:41]} 26. Ne5 {[%emt 0:00:53]} Bd6 {[%emt 0:07:00]} 27. Nxc6 {[%emt 0:02:45]} Qe8 {[%emt 0:00:44]} 28. b4 {[%emt 0:06:16]} axb4 {[%emt 0:00:58]} 29. axb4 {[%emt 0:00:03]} Bd3+ {[%emt 0:00:24]} 30. Kg1 {[%emt 0:01:25]} Bc4 {[%emt 0:00:47]} 31. Rxc4 $4 {[%emt 0:05:49]} (31. b5 $11 {and White is okay.}) 31... dxc4 {[%emt 0:00:04]} 32. b5 {[%emt 0:01:04]} Ra8 {[%emt 0:01:40]} 33. Qd1 {[%emt 0:00:44]} h6 {[%emt 0:00:18]} 34. d5 {[%emt 0:02:16]} Qe4 {[%emt 0:00:33]} 35. b6 {[%emt 0:00:50]} Qd3 $2 (35... Ra2 $19 {is more deadly.} 36. b7 Rb2 37. b8=Q+ Bxb8 38. Nxb8 Rb1) 36. Qxd3 {[%emt 0:00:59]} cxd3 {[%emt 0:00:16]} 37. g3 {[%emt 0:00:15]} Ra1+ {[%emt 0:00:07]} 38. Kg2 {[%emt 0:00:04]} Rb1 {[%emt 0:00:24]} 39. Kf3 {[%emt 0:01:04]} Rb2 {[%emt 0:00:06]} (39... Kf8 $17 40. Ke4 {[#]} Rxb6 $1 {[%mdl 512]}) 40. Na5 {[%emt 0:00:00]} Rb4 $16 {[%emt 0:01:32] [#]} (40... Rb5 $17 {keeps the pressure on.} 41. Nc4 Bb4) 41. Nb7 $1 {[%emt 0:02:58]} d2 {[%emt 0:27:21]} 42. Ke2 {[%emt 0:00:43]} Rb5 {[%emt 0:01:41]} 43. Nxd6 {[%emt 0:05:40]} Rxd5 {[%emt 0:00:10]} 44. Kd1 {[%emt 0:00:14]} 1-0

[Event "20th Heraklion IT Open 2017"]
[Site "Heraklion"]
[Date "2017.04.21"]
[Round "6"]
[White "Fragiadakis, Emanouel"]
[Black "Mardoyan Ararat, T  Artur"]
[Result "1-0"]
[ECO "E12"]
[WhiteElo "1827"]
[BlackElo "1502"]
[Annotator "NA RC"]
[PlyCount "123"]
[EventDate "2017.??.??"]
[EventType "swiss"]
[EventCountry "GRE"]
[SourceTitle "playchess.com"]
[Source "ChessBase"]
[SourceQuality "1"]
[TimeControl "40/5400+30:1800+30"]

1. d4 {[%emt 0:00:03]} Nf6 {[%emt 0:00:06]} 2. c4 {[%emt 0:00:03]} e6 {[%emt 0:00:04]} 3. Nf3 {[%emt 0:00:10]} b6 {[%emt 0:03:00]} 4. Bf4 {[%emt 0:00:33]} Bb7 {[%emt 0:00:13]} 5. e3 {[%emt 0:00:10]} d5 {[%emt 0:01:11] E12: Queen's Indian: Unusual White 4th moves, 4 a3, 4 Nc3 Bb7 5 a3 and 4 Nc3 Bb7} (5... Bb4+ 6. Nc3 O-O 7. Bd3 d6 8. Qc2 c5 9. O-O cxd4 10. exd4 Bxc3 11. bxc3 Bxf3 12. gxf3 Nc6 13. Kh1 e5 14. Be3 d5 15. Rg1 dxc4 {1-0 (35) Nguyen,N (2629)-Anton Guijarro,D (2650) Doha 2016}) 6. Nc3 {[%emt 0:00:47]} Nbd7 {[%emt 0:01:43]} 7. h3 {[%emt 0:00:20]} Be7 {[%emt 0:07:06]} 8. Bd3 {[%emt 0:00:28]} O-O {[%emt 0:00:36]} 9. O-O {[%emt 0:00:08]} Ne4 {[%emt 0:11:39]} 10. cxd5 $146 {[%emt 0:07:13]} (10. Qc2 f5 11. Ne5 c6 12. f3 Nxe5 13. Bxe5 Nd6 14. b3 Bf6 15. e4 dxc4 {1-0 (67) Xiang,E (1806)-Nguyen,E (1944) Manchester 2016}) 10... Nxc3 {[%emt 0:01:52]} 11. bxc3 {[%emt 0:00:12]} Bxd5 {[%emt 0:00:32]} 12. e4 {[%emt 0:12:19]} Bb7 {[%emt 0:00:09]} 13. c4 {[%emt 0:03:06]} Nf6 {[%emt 0:19:15]} 14. Qc2 {[%emt 0:04:56]} Nh5 {[%emt 0:02:51]} 15. Be3 {[%emt 0:03:46]} g6 {[%emt 0:01:44]} 16. Rad1 {[%emt 0:09:14]} c6 {[%emt 0:01:25]} 17. e5 {[%emt 0:32:11]} Qc7 {[%emt 0:05:58]} 18. Nd2 {[%emt 0:07:19]} c5 {[%emt 0:01:58]} 19. Be4 {[%emt 0:02:52]} cxd4 {[%emt 0:02:17]} 20. Bxd4 {[%emt 0:00:34]} Rfd8 {[%emt 0:00:56]} 21. Bxb7 {[%emt 0:00:54]} Qxb7 {[%emt 0:00:02]} 22. Be3 {[%emt 0:03:26]} Rac8 {[%emt 0:02:29]} 23. g4 {[%emt 0:01:17]} Ng7 {[%emt 0:00:05]} 24. Ne4 {[%emt 0:00:24]} Qc7 {[%emt 0:13:44]} 25. Rxd8+ {[%emt 0:00:05]} Rxd8 {[%emt 0:01:05]} 26. f4 {[%emt 0:00:51]} Ne8 {[%emt 0:00:41]} 27. Qa4 {[%emt 0:03:59]} Kf8 {[%emt 0:01:16]} 28. Rc1 {[%emt 0:02:26]} Rd3 {[%emt 0:00:03]} 29. Kf2 {[%emt 0:00:42]} Qb7 {[%emt 0:04:24]} 30. c5 {[%emt 0:00:55]} b5 {[%emt 0:07:23]} 31. c6 {[%emt 0:01:17]} Qxc6 {[%emt 0:00:02]} 32. Rxc6 {[%emt 0:00:10]} bxa4 {[%emt 0:00:03]} 33. Ke2 {[%emt 0:02:31]} Rd7 {[%emt 0:01:01]} 34. Rc8 {[%emt 0:00:34]} a3 {[%emt 0:03:15]} 35. f5 {[%emt 0:00:33]} Rd8 {[%emt 0:01:25]} 36. Bh6+ {[%emt 0:00:07]} (36. Rxd8 $16 {White threatens Bh6+ and mate.} Bxd8 37. fxe6 (37. Bxa7 gxf5 38. gxf5 exf5 $11)) 36... Kg8 {[%emt 0:00:13]} 37. Rc6 {[%emt 0:00:49]} exf5 {[%emt 0:05:13]} 38. gxf5 {[%emt 0:00:03]} gxf5 {[%emt 0:01:39]} 39. Ng3 {[%emt 0:00:20]} Bf8 {[%emt 0:00:41]} 40. Nxf5 {[%emt 0:00:00]} Rd5 {[%emt 0:00:38]} 41. Bf4 {[%emt 0:03:16]} f6 {[%emt 0:05:46]} 42. Nd6 {[%emt 0:05:23]} fxe5 $2 {[%emt 0:02:38]} (42... Nxd6 $11 {and Black has nothing to worry.} 43. exd6 Kf7) 43. Nxe8 {[%emt 0:00:29]} Kf7 {[%emt 0:00:00] [#]} 44. Nc7 $18 {[%emt 0:01:24]} Rd6 {[%emt 0:05:56]} 45. Rxd6 {[%emt 0:00:21]} Bxd6 {[%emt 0:00:02]} 46. Nb5 {[%emt 0:00:12]} exf4 {[%emt 0:03:12]} 47. Nxd6+ {[%emt 0:00:50]} Ke6 {[%emt 0:00:16]} 48. Nc4 {[%emt 0:01:36]} Kd5 {[%emt 0:00:31]} 49. Nxa3 {[%emt 0:00:23]} Kc5 {[%emt 0:02:29]} 50. Kf3 {[%emt 0:00:56]} Kb4 {[%emt 0:00:03]} 51. Nb1 {[%emt 0:00:15]} Kc4 {[%emt 0:00:12]} 52. Kxf4 {[%emt 0:00:13]} Kd3 {[%emt 0:00:02]} 53. Na3 {[%emt 0:01:30]} a5 {[%emt 0:01:01]} 54. Kg5 {[%emt 0:00:17]} a4 {[%emt 0:01:25]} 55. Kh6 {[%emt 0:00:30]} Kc3 {[%emt 0:00:05]} 56. Kxh7 {[%emt 0:00:43]} Kb2 {[%emt 0:01:22]} 57. Nb5 {[%emt 0:00:21]} Kxa2 {[%emt 0:01:01]} 58. Nc3+ {[%emt 0:00:17]} Kb3 {[%emt 0:00:02]} 59. Nxa4 {[%emt 0:00:15]} Kxa4 {[%emt 0:00:01]} 60. Kg7 {[%emt 0:00:13]} Kb5 {[%emt 0:00:02]} 61. h4 {[%emt 0:00:35]} Kc5 {[%emt 0:00:03]} 62. h5 {[%emt 0:00:48]} 1-0

[Event "20th Heraklion IT Open 2017"]
[Site "Heraklion"]
[Date "2017.04.21"]
[Round "6"]
[White "Brokalakis - Gounaris, Christos"]
[Black "Lampadariou, Nikolaos"]
[Result "1/2-1/2"]
[ECO "D10"]
[WhiteElo "1773"]
[BlackElo "1948"]
[Annotator "NA"]
[PlyCount "42"]
[EventDate "2017.??.??"]
[EventType "swiss"]
[EventCountry "GRE"]
[SourceTitle "playchess.com"]
[Source "ChessBase"]
[SourceQuality "1"]
[TimeControl "40/5400+30:1800+30"]

1. d4 {[%emt 0:00:00]} d5 {[%emt 0:00:30]} 2. c4 {[%emt 0:01:05]} c6 {[%emt 0:00:44]} 3. cxd5 {[%emt 0:00:41]} cxd5 {[%emt 0:01:04]} 4. Bf4 {[%emt 0:01:07]} Nc6 {[%emt 0:03:37]} 5. Nc3 {[%emt 0:01:03] LiveBook: 418 Games} Nf6 $14 {[%emt 0:00:34]} 6. Nf3 {[%emt 0:00:55]} e6 {[%emt 0:07:38]} 7. h3 {[%emt 0:04:10]} Bb4 {[%emt 0:03:49]} 8. Rc1 {[%emt 0:03:21]} Qa5 {[%emt 0:05:37]} 9. Qc2 {[%emt 0:05:16]} Qxa2 {[%emt 0:06:27]} 10. e3 {[%emt 0:04:01]} Ne4 {[%emt 0:09:53]} 11. Bb5 {[%emt 0:05:27]} Nxc3 {[%emt 0:02:50]} 12. bxc3 {[%emt 0:01:35]} Qxc2 {[%emt 0:00:17]} 13. Rxc2 {[%emt 0:00:02]} Be7 {[%emt 0:00:27]} 14. c4 {[%emt 0:07:15]} a6 {[%emt 0:10:53]} 15. Bxc6+ {[%emt 0:04:36]} bxc6 {[%emt 0:00:06]} 16. Ne5 {[%emt 0:00:33]} dxc4 {[%emt 0:16:03]} 17. Nxc6 {[%emt 0:06:10]} Bd7 {[%emt 0:05:17]} 18. Nxe7 {[%emt 0:00:48]} Kxe7 {[%emt 0:00:06]} 19. Rxc4 {[%emt 0:00:57]} Rhc8 {[%emt 0:01:58]} 20. Rxc8 {[%emt 0:01:06]} Rxc8 {[%emt 0:00:05]} 21. Kd2 {[%emt 0:00:40]} Bb5 {[%emt 0:03:27]} 1/2-1/2

[Event "20th Heraklion IT Open 2017"]
[Site "Heraklion"]
[Date "2017.04.21"]
[Round "6"]
[White "Papidakis, Georgios"]
[Black "Koutsourakis, Ioannis"]
[Result "1/2-1/2"]
[ECO "D10"]
[WhiteElo "1618"]
[BlackElo "1543"]
[Annotator "NA RC"]
[PlyCount "85"]
[EventDate "2017.??.??"]
[EventType "swiss"]
[EventCountry "GRE"]
[SourceTitle "playchess.com"]
[Source "ChessBase"]
[SourceQuality "1"]
[TimeControl "40/5400+30:1800+30"]

1. d4 {[%emt 0:00:00]} d5 {[%emt 0:00:07]} 2. c4 {[%emt 0:00:00]} c6 {[%emt 0:00:06]} 3. cxd5 {[%emt 0:00:00]} cxd5 {[%emt 0:00:06]} 4. Bf4 {[%emt 0:00:00]} Nc6 {[%emt 0:00:33]} 5. e3 {[%emt 0:00:04]} a6 {[%emt 0:01:01]} 6. Bd3 {[%emt 0:00:18]} e6 {[%emt 0:02:58]} 7. Nf3 {[%emt 0:00:16]} Nf6 {[%emt 0:00:27]} 8. O-O {[%emt 0:00:21]} Bd6 {[%emt 0:04:01]} 9. Bg5 {[%emt 0:00:13]} O-O {[%emt 0:01:33]} 10. Nc3 {[%emt 0:00:25]} Be7 {[%emt 0:06:51]} 11. a3 {[%emt 0:01:33]} b5 {[%emt 0:00:45]} 12. Qc2 {[%emt 0:10:59]} h6 {[%emt 0:06:57]} 13. Bxf6 {[%emt 0:00:42]} Bxf6 {[%emt 0:00:10]} 14. Nxb5 {[%emt 0:00:29]} Bb7 {[%emt 0:01:36]} 15. Nc3 {[%emt 0:00:42]} e5 {[%emt 0:14:44]} 16. dxe5 {[%emt 0:00:39]} Nxe5 {[%emt 0:00:12]} 17. Nxe5 {[%emt 0:01:12]} Bxe5 {[%emt 0:00:11]} 18. Qb3 {[%emt 0:35:58]} Rb8 {[%emt 0:09:19]} 19. Rfd1 {[%emt 0:10:33]} Qd6 {[%emt 0:09:25]} 20. h3 {[%emt 0:05:32]} Qe6 {[%emt 0:02:32]} 21. Be2 {[%emt 0:10:15]} Rfd8 {[%emt 0:04:51]} 22. Rac1 {[%emt 0:03:49]} Bc6 {[%emt 0:03:31]} 23. Qc2 {[%emt 0:03:28]} a5 {[%emt 0:01:42]} 24. Bg4 {[%emt 0:01:25]} Qe7 {[%emt 0:05:33]} 25. Bf3 {[%emt 0:02:39]} Qe6 {[%emt 0:01:50]} 26. Bg4 {[%emt 0:05:52]} Qe7 {[%emt 0:00:21]} 27. Ne2 {[%emt 0:01:33]} Ba8 {[%emt 0:06:28]} 28. Nd4 {[%emt 0:00:56]} Rb6 {[%emt 0:01:26]} 29. Qc5 {[%emt 0:03:57]} Qxc5 {[%emt 0:05:57]} 30. Rxc5 {[%emt 0:00:01]} Rxb2 {[%emt 0:00:12]} 31. Rxa5 {[%emt 0:00:21]} Bc7 {[%emt 0:00:27]} 32. Rb5 {[%emt 0:01:05]} Ra2 {[%emt 0:00:40]} 33. Rb3 {[%emt 0:00:38]} Bd6 {[%emt 0:01:54]} 34. g3 {[%emt 0:00:33]} Bxa3 {[%emt 0:02:11]} 35. Rdb1 {[%emt 0:00:21]} Bd6 {[%emt 0:04:12]} 36. Nf5 {[%emt 0:00:35]} Be5 {[%emt 0:01:57]} 37. Rd1 {[%emt 0:00:29]} Ra1 {[%emt 0:00:56]} 38. Rxa1 {[%emt 0:00:21]} Bxa1 {[%emt 0:00:01]} 39. Bf3 {[%emt 0:00:32]} Bf6 {[%emt 0:00:29]} 40. Ra3 {[%emt 0:00:00]} Bc6 {[%emt 0:01:19]} 41. Ra6 {[%emt 0:02:00]} Rc8 {[%emt 0:04:56]} 42. Nd6 {[%emt 0:11:16]} Rc7 {[%emt 0:00:40]} 43. Nxf7 {[%emt 0:00:43]} 1/2-1/2

[Event "20th Heraklion IT Open 2017"]
[Site "Heraklion"]
[Date "2017.04.21"]
[Round "6"]
[White "Kouvidis, Ioannis"]
[Black "Pelantakis, Mihail"]
[Result "1-0"]
[ECO "B28"]
[WhiteElo "1387"]
[BlackElo "1737"]
[Annotator "NA"]
[PlyCount "81"]
[EventDate "2017.??.??"]
[EventType "swiss"]
[EventCountry "GRE"]
[SourceTitle "playchess.com"]
[Source "ChessBase"]
[SourceQuality "1"]
[TimeControl "40/5400+30:1800+30"]

1. e4 {[%emt 0:00:00]} c5 {[%emt 0:00:05]} 2. Nf3 {[%emt 0:00:00]} a6 {[%emt 0:00:16]} 3. c3 {[%emt 0:00:00]} e6 {[%emt 0:00:09]} 4. d4 {[%emt 0:00:19]} d5 {[%emt 0:00:15]} 5. exd5 {[%emt 0:00:22]} exd5 {[%emt 0:00:32]} 6. dxc5 {[%emt 0:00:28]} Bxc5 {[%emt 0:00:43]} 7. Bd3 {[%emt 0:00:37]} Nf6 {[%emt 0:00:44]} 8. O-O {[%emt 0:00:41]} O-O {[%emt 0:00:43]} 9. Bf4 {[%emt 0:00:50]} Nc6 {[%emt 0:03:35]} 10. Nbd2 {[%emt 0:00:16]} Bg4 {[%emt 0:09:48]} 11. Nb3 {[%emt 0:01:20]} Ba7 {[%emt 0:03:05]} 12. h3 {[%emt 0:01:24]} Bh5 {[%emt 0:02:41]} 13. Bg5 {[%emt 0:01:29]} Bb8 {[%emt 0:14:36]} 14. Be2 {[%emt 0:00:46]} Qd6 {[%emt 0:13:07]} 15. g3 {[%emt 0:01:24]} Rd8 {[%emt 0:17:48]} 16. Bf4 {[%emt 0:02:44]} Qe7 {[%emt 0:01:36]} 17. Bxb8 {[%emt 0:00:15]} Raxb8 {[%emt 0:00:10]} 18. Nfd4 {[%emt 0:01:33]} Bxe2 {[%emt 0:04:47]} 19. Nxe2 {[%emt 0:01:02]} Ne5 {[%emt 0:02:35]} 20. Nbd4 {[%emt 0:00:55]} Nc4 {[%emt 0:02:23]} 21. b3 {[%emt 0:00:59]} Nd6 {[%emt 0:04:36]} 22. Nf4 {[%emt 0:00:45]} Nde4 {[%emt 0:00:58]} 23. Re1 {[%emt 0:00:34]} Qc5 {[%emt 0:02:51]} 24. Rc1 {[%emt 0:00:32]} b5 {[%emt 0:03:03]} 25. Nd3 {[%emt 0:00:41]} Qb6 {[%emt 0:02:53]} 26. Nf4 {[%emt 0:12:43]} Rbc8 {[%emt 0:01:12]} 27. Qf3 {[%emt 0:00:39]} b4 {[%emt 0:06:52]} 28. Nde2 {[%emt 0:01:31]} bxc3 {[%emt 0:01:12]} 29. Nxc3 {[%emt 0:00:10]} Rxc3 {[%emt 0:01:14]} 30. Rxc3 {[%emt 0:00:42]} Qxf2+ {[%emt 0:00:29]} 31. Qxf2 {[%emt 0:00:16]} Nxf2 {[%emt 0:00:11]} 32. Kxf2 {[%emt 0:00:05]} Ne4+ {[%emt 0:00:03]} 33. Rxe4 {[%emt 0:00:16]} dxe4 {[%emt 0:00:07]} 34. Ke3 {[%emt 0:00:15]} g5 {[%emt 0:00:11]} 35. Nh5 {[%emt 0:00:23]} f5 {[%emt 0:00:09]} 36. g4 {[%emt 0:01:41]} f4+ {[%emt 0:01:30]} 37. Kxe4 {[%emt 0:00:21]} Rf8 {[%emt 0:00:01]} 38. h4 {[%emt 0:01:52]} h6 {[%emt 0:00:20]} 39. hxg5 {[%emt 0:00:20]} hxg5 {[%emt 0:00:03]} 40. a4 {[%emt 0:00:00]} Rb8 {[%emt 0:01:35]} 41. Kf5 {[%emt 0:01:17]} 1-0